[Event "GER-ch Youth U14w 2019"]
[Site "Willingen"]
[Date "2019.06.13"]
[Round "7.9"]
[White "Wagner, Margarethe"]
[Black "Oswald, Hannah"]
[Result "1-0"]
[ECO "C60"]
[WhiteElo "1741"]
[BlackElo "1632"]
[Annotator "NA RC"]
[PlyCount "159"]
[EventDate "2019.06.07"]
[EventType "swiss"]
[EventRounds "9"]
[EventCountry "GER"]
[SourceTitle "playchess.com"]
[Source "ChessBase"]
[SourceQuality "1"]
[TimeControl "40/5400+30:1800+30"]

1. e4 {[%emt 0:00:00]} e5 {[%emt 0:00:00]} 2. Nf3 {[%emt 0:00:00]} Nc6 {[%emt 0:00:00]} 3. Bb5 {[%emt 0:00:00]} Nge7 {[%emt 0:00:03]} 4. d4 {[%emt 0:03:09]} exd4 {[%emt 0:03:34]} 5. Nxd4 {[%emt 0:00:25]} g6 {[%emt 0:06:29]} 6. Be3 {[%emt 0:08:09]} Bg7 {[%emt 0:02:19]} 7. c3 {[%emt 0:04:11]} O-O {[%emt 0:02:20]} 8. O-O {[%emt 0:03:04]} d5 {[%emt 0:06:07]} 9. Nxc6 {[%emt 0:04:09]} bxc6 {[%emt 0:00:37]} 10. Bd3 {[%emt 0:03:04]} Be6 {[%emt 0:09:00]} 11. Qc2 {[%emt 0:05:18]} Qd6 {[%emt 0:06:58]} 12. b4 {[%emt 0:05:24]} a5 {[%emt 0:04:46]} 13. Bc5 {[%emt 0:01:02]} Qd7 {[%emt 0:01:09]} 14. Nd2 {[%emt 0:03:25]} axb4 {[%emt 0:01:44]} 15. Bxb4 {[%emt 0:00:46]} Rfb8 {[%emt 0:04:09]} 16. a3 {[%emt 0:02:38]} Nc8 {[%emt 0:10:44]} 17. Nb3 {[%emt 0:05:27]} Nd6 {[%emt 0:08:48]} 18. Nc5 {[%emt 0:02:20]} Qc8 {[%emt 0:01:34]} 19. Rfe1 {[%emt 0:07:10]} dxe4 {[%emt 0:07:46]} 20. Nxe4 {[%emt 0:02:15]} Nxe4 {[%emt 0:04:49]} 21. Bxe4 {[%emt 0:01:09]} Bd5 {[%emt 0:00:53]} 22. Rad1 {[%emt 0:01:28]} Qb7 {[%emt 0:03:07]} 23. c4 {[%emt 0:05:51]} Be6 {[%emt 0:01:22]} 24. Qe2 {[%emt 0:02:27]} Re8 {[%emt 0:05:05]} 25. Qf3 {[%emt 0:02:14]} Ra6 {[%emt 0:00:46]} 26. c5 {[%emt 0:03:41]} Bb2 {[%emt 0:02:49]} 27. Rb1 {[%emt 0:00:39]} Bg7 {[%emt 0:01:30]} 28. Bd3 {[%emt 0:08:30]} Raa8 {[%emt 0:01:18]} 29. Bd2 {[%emt 0:03:57]} Qc8 {[%emt 0:00:51]} 30. Be4 {[%emt 0:01:52]} Bd5 {[%emt 0:01:15]} 31. Bb4 {[%emt 0:02:04]} Bxe4 {[%emt 0:00:48]} 32. Rxe4 {[%emt 0:00:08]} Rxe4 {[%emt 0:00:06]} 33. Qxe4 {[%emt 0:00:04]} Qe8 {[%emt 0:00:19]} 34. Qxe8+ {[%emt 0:00:32]} Rxe8 {[%emt 0:00:03]} 35. Kf1 {[%emt 0:01:39]} Kf8 {[%emt 0:01:12]} 36. Rb3 {[%emt 0:02:22]} Ra8 {[%emt 0:00:55]} 37. Ke2 {[%emt 0:02:43]} Ke7 {[%emt 0:00:51]} 38. Rd3 {[%emt 0:01:56]} Bb2 {[%emt 0:01:15]} 39. Kd2 {[%emt 0:02:15]} Ke6 {[%emt 0:00:34]} 40. Kc2 {[%emt 0:01:04]} Be5 {[%emt 0:00:43]} 41. h3 {[%emt 0:31:18]} Bf6 {[%emt 0:31:04]} 42. Kb3 {[%emt 0:00:36]} Be7 {[%emt 0:00:00]} 43. a4 {[%emt 0:00:00]} Rb8 {[%emt 0:00:00]} 44. Kc4 {[%emt 0:00:00]} Ra8 {[%emt 0:00:00]} 45. a5 {[%emt 0:00:00]} Bf8 {[%emt 0:00:00]} 46. Rd4 {[%emt 0:00:00]} Be7 {[%emt 0:00:00]} 47. Rd3 {[%emt 0:00:00]} Bf8 {[%emt 0:00:00]} 48. Bc3 {[%emt 0:00:00]} Be7 {[%emt 0:00:00]} 49. g4 {[%emt 0:00:00]} g5 {[%emt 0:00:00]} 50. Rd2 {[%emt 0:00:00]} f6 {[%emt 0:00:00]} 51. Bb4 {[%emt 0:00:00]} Bf8 {[%emt 0:00:00]} 52. Rd4 {[%emt 0:00:00]} Bh6 {[%emt 0:00:00]} 53. Bc3 {[%emt 0:00:00]} Ke7 {[%emt 0:00:00]} 54. Re4+ {[%emt 0:00:00]} Kf7 {[%emt 0:00:00]} 55. Kd3 {[%emt 0:00:00]} Bf8 {[%emt 0:00:00]} 56. Bb4 {[%emt 0:00:06]} Bh6 {[%emt 0:01:18]} 57. Ke2 {[%emt 0:00:49]} Ra6 {[%emt 0:00:30]} 58. Kf3 {[%emt 0:00:18]} Ra8 {[%emt 0:00:27]} 59. Kg3 {[%emt 0:00:30]} Bf8 {[%emt 0:01:30]} 60. f4 {[%emt 0:01:22]} h6 {[%emt 0:00:43]} 61. f5 {[%emt 0:01:10]} Be7 {[%emt 0:00:47]} 62. Kf3 {[%emt 0:00:29]} Kf8 {[%emt 0:00:40]} 63. Ke3 {[%emt 0:00:56]} Ra6 {[%emt 0:00:21]} 64. Kd3 {[%emt 0:00:32]} Kf7 {[%emt 0:00:07]} 65. Kc4 {[%emt 0:00:08]} Kf8 {[%emt 0:00:15]} 66. Bc3 {[%emt 0:00:06]} Kf7 {[%emt 0:00:13]} 67. Re6 {[%emt 0:00:30]} Bd8 {[%emt 0:00:33]} 68. Rxc6 {[%emt 0:01:09]} Ra8 {[%emt 0:02:15]} 69. Kb5 {[%emt 0:00:11]} Rb8+ {[%emt 0:02:11]} 70. Kc4 {[%emt 0:00:07]} Ra8 {[%emt 0:00:26]} 71. Re6 {[%emt 0:00:06]} Ra7 {[%emt 0:01:19]} 72. a6 {[%emt 0:00:42]} Ra8 {[%emt 0:00:08]} 73. Kd5 {[%emt 0:01:52]} Ra7 {[%emt 0:00:29]} 74. Kc4 {[%emt 0:00:36]} Ra8 {[%emt 0:00:28]} 75. Kb5 {[%emt 0:00:27]} Ra7 {[%emt 0:00:19]} 76. Bd4 {[%emt 0:00:07]} Ra8 {[%emt 0:00:28]} 77. c6 {[%emt 0:00:50]} Rb8+ {[%emt 0:00:28]} 78. Ka4 {[%emt 0:00:06]} Ra8 {[%emt 0:00:36]} 79. a7 {[%emt 0:00:08] normal} Be7 {[%emt 0:00:45]} 80. Ka5 {[%emt 0:00:38] normal} 1-0

[Event "GER-ch Youth U14w 2019"]
[Site "Willingen"]
[Date "2019.06.13"]
[Round "7.10"]
[White "Zixin, Li"]
[Black "Zoellner, Bente"]
[Result "0-1"]
[ECO "B32"]
[WhiteElo "1284"]
[BlackElo "1530"]
[Annotator "NA"]
[PlyCount "87"]
[EventDate "2019.06.07"]
[EventType "swiss"]
[EventRounds "9"]
[EventCountry "GER"]
[SourceTitle "playchess.com"]
[Source "ChessBase"]
[SourceQuality "1"]
[TimeControl "40/5400+30:1800+30"]

1. e4 {[%emt 0:00:00]} c5 {[%emt 0:00:00]} 2. Nf3 {[%emt 0:00:00]} Nc6 {[%emt 0:00:00]} 3. d4 {[%emt 0:00:00]} cxd4 {[%emt 0:00:00]} 4. Nxd4 {[%emt 0:00:00]} e5 {[%emt 0:00:00]} 5. Nb5 {[%emt 0:00:40]} d6 {[%emt 0:00:18]} 6. N1c3 {[%emt 0:00:13]} a6 {[%emt 0:00:26]} 7. Na3 {[%emt 0:00:05]} b5 {[%emt 0:00:09]} 8. Nd5 {[%emt 0:00:43]} Nge7 {[%emt 0:00:34]} 9. Bd3 {[%emt 0:02:06]} Nxd5 {[%emt 0:03:18]} 10. exd5 {[%emt 0:00:10]} Ne7 {[%emt 0:02:16]} 11. c4 {[%emt 0:01:20]} Nf5 {[%emt 0:07:43]} 12. Nc2 {[%emt 0:01:16]} Be7 {[%emt 0:02:11]} 13. cxb5 {[%emt 0:01:02]} O-O {[%emt 0:01:37]} 14. bxa6 {[%emt 0:00:10]} Bxa6 {[%emt 0:00:35]} 15. Bxf5 {[%emt 0:00:11]} Qa5+ {[%emt 0:01:34]} 16. Qd2 {[%emt 0:01:23]} Qb5 {[%emt 0:01:08]} 17. Bg4 {[%emt 0:02:43]} Bb7 {[%emt 0:08:56]} 18. Bf3 {[%emt 0:01:34]} Rfc8 {[%emt 0:05:28]} 19. Ne3 {[%emt 0:01:39]} Bd8 {[%emt 0:03:59]} 20. Nf5 {[%emt 0:02:05]} Ba5 {[%emt 0:03:18]} 21. Ne7+ {[%emt 0:03:57]} Kf8 {[%emt 0:01:09]} 22. Qxa5 {[%emt 0:00:53]} Rxa5 {[%emt 0:02:22]} 23. Nxc8 {[%emt 0:00:12]} Bxc8 {[%emt 0:00:27]} 24. a3 {[%emt 0:02:33]} Bb7 {[%emt 0:04:35]} 25. b4 {[%emt 0:01:57]} Ra8 {[%emt 0:05:04]} 26. Be3 {[%emt 0:01:00]} Bxd5 {[%emt 0:03:27]} 27. Bxd5 {[%emt 0:00:09]} Qxd5 {[%emt 0:00:21]} 28. O-O {[%emt 0:00:03]} Qb5 {[%emt 0:00:39]} 29. Rfd1 {[%emt 0:00:57]} Ke7 {[%emt 0:02:43]} 30. Ra2 {[%emt 0:01:48]} Ke6 {[%emt 0:02:03]} 31. Rda1 {[%emt 0:00:08]} Ra4 {[%emt 0:02:03]} 32. Re1 {[%emt 0:01:31]} Qc4 {[%emt 0:04:31]} 33. Raa1 {[%emt 0:00:52]} f5 {[%emt 0:05:58]} 34. Reb1 {[%emt 0:00:52]} Qd3 {[%emt 0:05:51]} 35. b5 {[%emt 0:01:05]} Rxa3 {[%emt 0:00:32]} 36. b6 {[%emt 0:00:16]} Rxa1 {[%emt 0:00:27]} 37. Rxa1 {[%emt 0:00:12]} Qb3 {[%emt 0:00:42]} 38. g3 {[%emt 0:00:46]} f4 {[%emt 0:04:19]} 39. gxf4 {[%emt 0:00:05]} exf4 {[%emt 0:00:13]} 40. Bd4 {[%emt 0:00:25]} Qb4 {[%emt 0:07:12]} 41. Rd1 {[%emt 0:33:24]} f3 {[%emt 0:32:51]} 42. Be3 {[%emt 0:02:17]} Qb5 {[%emt 0:05:08]} 43. h3 {[%emt 0:03:48]} d5 {[%emt 0:00:00]} 44. Kh2 {[%emt 0:00:00] normal} 0-1

[Event "GER-ch Youth U14w 2019"]
[Site "Willingen"]
[Date "2019.06.13"]
[Round "7.11"]
[White "Werner, Rosalie"]
[Black "Berghold, Lotta"]
[Result "1/2-1/2"]
[ECO "B00"]
[WhiteElo "1610"]
[BlackElo "1471"]
[Annotator "NA"]
[PlyCount "51"]
[EventDate "2019.06.07"]
[EventType "swiss"]
[EventRounds "9"]
[EventCountry "GER"]
[SourceTitle "playchess.com"]
[Source "ChessBase"]
[SourceQuality "1"]
[TimeControl "40/5400+30:1800+30"]

1. e4 {[%emt 0:00:00]} b6 {[%emt 0:00:00]} 2. d4 {[%emt 0:00:00]} Bb7 {[%emt 0:00:00]} 3. Bd3 {[%emt 0:00:00]} e6 {[%emt 0:00:00]} 4. Ne2 {[%emt 0:00:00]} Nf6 {[%emt 0:00:42]} 5. Nd2 {[%emt 0:00:14]} Be7 {[%emt 0:04:15]} 6. O-O {[%emt 0:01:09]} O-O {[%emt 0:03:32]} 7. c3 {[%emt 0:04:20]} d6 {[%emt 0:04:44]} 8. Ng3 {[%emt 0:11:43]} Nbd7 {[%emt 0:05:48]} 9. Nf3 {[%emt 0:03:53]} Re8 {[%emt 0:09:32]} 10. h3 {[%emt 0:05:17]} Nf8 {[%emt 0:00:56]} 11. Be3 {[%emt 0:01:33]} N6d7 {[%emt 0:12:46]} 12. b4 {[%emt 0:11:18]} Ng6 {[%emt 0:10:26]} 13. Qd2 {[%emt 0:02:08]} a6 {[%emt 0:06:29]} 14. Rfe1 {[%emt 0:13:47]} c5 {[%emt 0:03:21]} 15. a3 {[%emt 0:11:40]} Rc8 {[%emt 0:06:10]} 16. Rac1 {[%emt 0:02:50]} cxd4 {[%emt 0:03:05]} 17. cxd4 {[%emt 0:00:42]} Rxc1 {[%emt 0:01:52]} 18. Rxc1 {[%emt 0:00:14]} Qb8 {[%emt 0:02:56]} 19. Rc2 {[%emt 0:08:51]} b5 {[%emt 0:01:24]} 20. Qc1 {[%emt 0:00:49]} Rc8 {[%emt 0:00:16]} 21. Nd2 {[%emt 0:01:11]} Rxc2 {[%emt 0:01:52]} 22. Qxc2 {[%emt 0:00:09]} Qc8 {[%emt 0:00:36]} 23. Qxc8+ {[%emt 0:01:00]} Bxc8 {[%emt 0:00:06]} 24. Ne2 {[%emt 0:00:38]} Bb7 {[%emt 0:02:18]} 25. Nc1 {[%emt 0:01:18] normal} Bd8 {[%emt 0:01:26] normal} 26. Ncb3 {[%emt 0:01:15] normal} 1/2-1/2

[Event "GER-ch Youth U14w 2019"]
[Site "Willingen"]
[Date "2019.06.13"]
[Round "7.12"]
[White "Becker, Linda"]
[Black "Sinner, Joselyne"]
[Result "1-0"]
[ECO "C55"]
[WhiteElo "1683"]
[BlackElo "1521"]
[Annotator "NA"]
[PlyCount "120"]
[EventDate "2019.06.07"]
[EventType "swiss"]
[EventRounds "9"]
[EventCountry "GER"]
[SourceTitle "playchess.com"]
[Source "ChessBase"]
[SourceQuality "1"]
[TimeControl "40/5400+30:1800+30"]

1. e4 {[%emt 0:00:00]} e5 {[%emt 0:00:00]} 2. Nf3 {[%emt 0:00:00]} Nc6 {[%emt 0:00:00]} 3. d4 {[%emt 0:00:00]} exd4 {[%emt 0:00:00]} 4. Bc4 {[%emt 0:00:00]} Nf6 {[%emt 0:00:00]} 5. e5 {[%emt 0:00:06]} d5 {[%emt 0:00:00]} 6. Bb5 {[%emt 0:00:21]} Ne4 {[%emt 0:00:12]} 7. Nxd4 {[%emt 0:00:23]} Bc5 {[%emt 0:01:04]} 8. Be3 {[%emt 0:00:35]} O-O {[%emt 0:18:25]} 9. Nxc6 {[%emt 0:10:03]} bxc6 10. Bxc5 {[%emt 0:01:15]} Nxc5 11. Bxc6 Rb8 {[%emt 0:08:24]} 12. O-O {[%emt 0:07:50]} Rxb2 {[%emt 0:09:24]} 13. Bxd5 {[%emt 0:04:08]} Bf5 {[%emt 0:09:44]} 14. Bb3 {[%emt 0:15:04]} Qxd1 {[%emt 0:16:32]} 15. Rxd1 {[%emt 0:00:10]} Bxc2 {[%emt 0:00:36]} 16. Bxc2 {[%emt 0:02:09]} Rxc2 {[%emt 0:00:08]} 17. Na3 {[%emt 0:00:17]} Rb2 {[%emt 0:03:05]} 18. Rd5 {[%emt 0:01:25]} Ne4 {[%emt 0:02:41]} 19. f3 {[%emt 0:00:22]} Nc3 {[%emt 0:00:52]} 20. Rd7 {[%emt 0:01:02]} Rc8 {[%emt 0:01:33]} 21. Kf1 {[%emt 0:01:58]} a6 {[%emt 0:01:39]} 22. Rc1 {[%emt 0:00:29]} Nxa2 {[%emt 0:01:24]} 23. Rcxc7 {[%emt 0:01:04]} Rbb8 {[%emt 0:06:08]} 24. Rxf7 {[%emt 0:00:43]} Rxc7 {[%emt 0:00:21]} 25. Rxc7 {[%emt 0:00:07]} Nb4 {[%emt 0:00:40]} 26. Nc4 {[%emt 0:01:02]} Nd5 {[%emt 0:03:29]} 27. Ra7 {[%emt 0:02:30]} Nb4 {[%emt 0:03:20]} 28. Kf2 {[%emt 0:03:35]} Kf8 {[%emt 0:03:18]} 29. Ke3 {[%emt 0:01:59]} Rc8 {[%emt 0:03:38]} 30. Nd6 {[%emt 0:01:04]} Rc7 {[%emt 0:00:36]} 31. Rxc7 {[%emt 0:03:45]} Nd5+ {[%emt 0:00:05]} 32. Kd4 {[%emt 0:00:06]} Nxc7 {[%emt 0:00:03]} 33. Kc5 {[%emt 0:01:01]} Ke7 {[%emt 0:03:00]} 34. Kc6 {[%emt 0:01:47]} Ne6 {[%emt 0:02:29]} 35. Kb6 {[%emt 0:00:53]} g5 {[%emt 0:01:44]} 36. Kxa6 {[%emt 0:00:49]} Nc5+ {[%emt 0:00:07]} 37. Kb5 {[%emt 0:01:02]} Nd3 {[%emt 0:00:20]} 38. Nc4 {[%emt 0:01:06]} Ke6 {[%emt 0:00:19]} 39. Kc6 {[%emt 0:03:47]} Nxe5+ {[%emt 0:00:45]} 40. Nxe5 {[%emt 0:00:06]} Kxe5 {[%emt 0:00:07]} 41. Kd7 {[%emt 0:30:17]} Kf4 {[%emt 0:30:34]} 42. Ke6 {[%emt 0:00:23]} g4 {[%emt 0:02:26]} 43. fxg4 {[%emt 0:00:43]} Kxg4 {[%emt 0:00:08]} 44. Kf6 {[%emt 0:01:42]} Kf4 {[%emt 0:00:00]} 45. Kg7 {[%emt 0:00:00]} h5 {[%emt 0:00:00]} 46. Kh6 {[%emt 0:00:00]} h4 {[%emt 0:00:00]} 47. h3 {[%emt 0:00:00]} Kg3 {[%emt 0:00:00]} 48. Kg5 {[%emt 0:00:00]} Kxg2 {[%emt 0:00:00]} 49. Kxh4 {[%emt 0:00:00]} Kf3 {[%emt 0:00:00]} 50. Kg5 {[%emt 0:00:00]} Ke4 {[%emt 0:00:00]} 51. h4 {[%emt 0:00:00]} Ke5 {[%emt 0:00:00]} 52. Kg6 {[%emt 0:00:00]} Ke6 {[%emt 0:00:00]} 53. h5 {[%emt 0:00:00]} Ke7 {[%emt 0:00:00]} 54. Kg7 {[%emt 0:00:00]} Ke6 {[%emt 0:00:00]} 55. h6 {[%emt 0:00:00]} Kf5 {[%emt 0:00:00]} 56. h7 {[%emt 0:00:00]} Kg5 {[%emt 0:00:00]} 57. h8=Q {[%emt 0:00:00]} Kf5 {[%emt 0:00:00]} 58. Qh5+ {[%emt 0:00:00]} Ke6 {[%emt 0:00:00]} 59. Qg5 {[%emt 0:00:00]} Kd6 {[%emt 0:00:00]} 60. Qf5 {[%emt 0:00:00]} Kc6 {[%emt 0:00:00] normal} 1-0

[Event "GER-ch Youth U14w 2019"]
[Site "Willingen"]
[Date "2019.06.14"]
[Round "8.1"]
[White "Bashylina, Luisa"]
[Black "Orlova, Alicia"]
[Result "1-0"]
[ECO "C41"]
[WhiteElo "1886"]
[BlackElo "1490"]
[Annotator "NA"]
[PlyCount "44"]
[EventDate "2019.06.07"]
[EventType "swiss"]
[EventRounds "9"]
[EventCountry "GER"]
[SourceTitle "playchess.com"]
[Source "ChessBase"]
[SourceQuality "1"]
[TimeControl "40/5400+30:1800+30"]

1. e4 {[%emt 0:00:00]} e5 {[%emt 0:00:00]} 2. Nf3 {[%emt 0:00:00]} d6 {[%emt 0:00:00]} 3. d4 {[%emt 0:00:20]} exd4 {[%emt 0:00:20]} 4. Nxd4 {[%emt 0:00:08]} Nf6 {[%emt 0:00:20]} 5. Nc3 {[%emt 0:00:06]} Be7 {[%emt 0:00:26]} 6. Be3 {[%emt 0:00:06]} O-O {[%emt 0:01:11]} 7. f3 {[%emt 0:00:48]} Re8 {[%emt 0:01:03]} 8. Qd2 {[%emt 0:00:23]} Nc6 {[%emt 0:01:57]} 9. O-O-O {[%emt 0:00:33]} a6 {[%emt 0:04:39]} 10. g4 {[%emt 0:11:14]} Nd7 {[%emt 0:07:46]} 11. Nd5 {[%emt 0:02:50]} Nde5 {[%emt 0:06:52]} 12. Nxe7+ {[%emt 0:01:39]} Qxe7 {[%emt 0:01:52]} 13. Be2 {[%emt 0:09:45]} Be6 {[%emt 0:13:49]} 14. Nf5 {[%emt 0:05:56]} Bxf5 {[%emt 0:02:20]} 15. gxf5 {[%emt 0:00:30]} Rad8 {[%emt 0:00:27]} 16. Rhg1 {[%emt 0:05:53]} f6 {[%emt 0:01:23]} 17. Bh6 {[%emt 0:03:08]} Kh8 {[%emt 0:03:54]} 18. Bxg7+ {[%emt 0:00:34]} Qxg7 {[%emt 0:00:09]} 19. Rxg7 {[%emt 0:00:04]} Kxg7 {[%emt 0:00:07]} 20. Rg1+ {[%emt 0:00:11]} Ng6 {[%emt 0:02:07]} 21. fxg6 {[%emt 0:01:11]} hxg6 {[%emt 0:00:09]} 22. Qc3 {[%emt 0:05:02]} d5 {[%emt 0:02:12] normal} 1-0

[Event "GER-ch Youth U14w 2019"]
[Site "Willingen"]
[Date "2019.06.14"]
[Round "8.2"]
[White "Doll, Rebecca"]
[Black "Reuter, Elisa"]
[Result "1/2-1/2"]
[ECO "B22"]
[WhiteElo "1678"]
[BlackElo "1923"]
[Annotator "NA"]
[PlyCount "79"]
[EventDate "2019.06.07"]
[EventType "swiss"]
[EventRounds "9"]
[EventCountry "GER"]
[SourceTitle "playchess.com"]
[Source "ChessBase"]
[SourceQuality "1"]
[TimeControl "40/5400+30:1800+30"]

1. e4 {[%emt 0:00:00]} c5 {[%emt 0:00:00]} 2. c3 {[%emt 0:00:00]} Nf6 {[%emt 0:00:00]} 3. e5 {[%emt 0:00:00]} Nd5 {[%emt 0:00:00]} 4. d4 {[%emt 0:00:39]} cxd4 {[%emt 0:00:00]} 5. cxd4 {[%emt 0:00:16]} e6 {[%emt 0:00:00]} 6. Nf3 {[%emt 0:00:48]} b6 {[%emt 0:00:00]} 7. a3 {[%emt 0:02:35]} Bb7 {[%emt 0:01:58]} 8. Bd3 {[%emt 0:04:30]} d6 {[%emt 0:02:06]} 9. O-O {[%emt 0:04:17]} Be7 {[%emt 0:10:09]} 10. Qe2 {[%emt 0:06:10]} Nd7 {[%emt 0:09:20]} 11. Bd2 {[%emt 0:06:37]} Rc8 {[%emt 0:07:14]} 12. Re1 {[%emt 0:06:25]} dxe5 {[%emt 0:04:30]} 13. dxe5 {[%emt 0:03:55]} Nc5 {[%emt 0:02:50]} 14. Bc2 {[%emt 0:06:48]} Ba6 {[%emt 0:05:52]} 15. Ba4+ {[%emt 0:10:52]} Nxa4 {[%emt 0:01:48]} 16. Qxa6 {[%emt 0:00:41]} Nc5 {[%emt 0:01:12]} 17. Qb5+ {[%emt 0:03:54]} Qd7 {[%emt 0:03:05]} 18. Qxd7+ {[%emt 0:06:09]} Kxd7 {[%emt 0:00:17]} 19. Nc3 {[%emt 0:07:24]} Nd3 {[%emt 0:03:24]} 20. Reb1 {[%emt 0:12:08]} Nxc3 {[%emt 0:11:36]} 21. Bxc3 {[%emt 0:00:37]} Rhd8 {[%emt 0:00:17]} 22. Rd1 {[%emt 0:03:39]} Ke8 {[%emt 0:00:47]} 23. Kf1 {[%emt 0:04:19]} Bc5 {[%emt 0:04:32]} 24. Rd2 {[%emt 0:00:27]} Rd5 {[%emt 0:01:41]} 25. g3 {[%emt 0:02:41]} b5 {[%emt 0:14:00]} 26. Rb1 {[%emt 0:01:07]} Bxa3 {[%emt 0:02:45]} 27. Bd4 {[%emt 0:00:56]} Nxb2 {[%emt 0:08:36]} 28. Bxb2 {[%emt 0:00:19]} Rxd2 {[%emt 0:00:51]} 29. Nxd2 {[%emt 0:00:12]} Bb4 {[%emt 0:01:49]} 30. Nf3 {[%emt 0:02:15]} a5 {[%emt 0:00:33]} 31. Nd4 {[%emt 0:01:56]} Rc5 {[%emt 0:00:30]} 32. Ke2 {[%emt 0:00:49]} Rxe5+ {[%emt 0:00:29]} 33. Kd3 {[%emt 0:00:32]} Rd5 {[%emt 0:00:24]} 34. Ke4 {[%emt 0:01:04]} Kd7 {[%emt 0:02:22]} 35. Nc2 {[%emt 0:00:54]} Bc5 {[%emt 0:01:24]} 36. f4 {[%emt 0:00:50]} f5+ {[%emt 0:00:30]} 37. Kf3 {[%emt 0:00:10]} g6 {[%emt 0:00:10]} 38. Be5 {[%emt 0:00:48]} Kc6 {[%emt 0:00:36]} 39. Rc1 {[%emt 0:00:48]} Kb6 {[%emt 0:00:26]} 40. Re1 {[%emt 0:00:36] normal} 1/2-1/2

[Event "GER-ch Youth U14w 2019"]
[Site "Willingen"]
[Date "2019.06.14"]
[Round "8.3"]
[White "Butenandt, Svenja"]
[Black "Gerber, Anna Sophie"]
[Result "1-0"]
[ECO "E46"]
[WhiteElo "1722"]
[BlackElo "1473"]
[Annotator "NA"]
[PlyCount "121"]
[EventDate "2019.06.07"]
[EventType "swiss"]
[EventRounds "9"]
[EventCountry "GER"]
[SourceTitle "playchess.com"]
[Source "ChessBase"]
[SourceQuality "1"]
[TimeControl "40/5400+30:1800+30"]

1. d4 {[%emt 0:00:00]} Nf6 {[%emt 0:00:00]} 2. c4 {[%emt 0:00:00]} e6 {[%emt 0:00:00]} 3. Nc3 {[%emt 0:00:00]} Bb4 {[%emt 0:00:13]} 4. e3 {[%emt 0:00:00]} O-O {[%emt 0:00:31]} 5. Nge2 {[%emt 0:00:00]} b6 {[%emt 0:00:30]} 6. a3 {[%emt 0:00:56]} Bxc3+ {[%emt 0:00:31]} 7. Nxc3 {[%emt 0:00:06]} d5 {[%emt 0:00:33]} 8. cxd5 {[%emt 0:02:03]} exd5 {[%emt 0:00:26]} 9. Bd3 {[%emt 0:01:05]} a5 {[%emt 0:00:56]} 10. O-O {[%emt 0:02:40]} Ba6 {[%emt 0:00:38]} 11. f3 {[%emt 0:05:18]} Bxd3 {[%emt 0:01:45]} 12. Qxd3 {[%emt 0:00:04]} Nc6 {[%emt 0:04:07]} 13. Bd2 {[%emt 0:03:36]} Re8 {[%emt 0:01:42]} 14. Rac1 {[%emt 0:01:21]} Qd7 {[%emt 0:03:43]} 15. Be1 {[%emt 0:05:15]} Re6 {[%emt 0:03:53]} 16. Bf2 {[%emt 0:03:04]} Rae8 {[%emt 0:06:47]} 17. Rc2 {[%emt 0:04:08]} Ne7 {[%emt 0:07:38]} 18. Rfc1 {[%emt 0:12:26]} Rc8 {[%emt 0:09:08]} 19. e4 {[%emt 0:04:44]} dxe4 {[%emt 0:02:18]} 20. fxe4 {[%emt 0:00:15]} Ng4 {[%emt 0:05:43]} 21. Bg3 {[%emt 0:02:42]} Nc6 {[%emt 0:13:52]} 22. d5 {[%emt 0:03:35]} Ree8 {[%emt 0:10:09]} 23. Rd2 {[%emt 0:10:14]} Nce5 {[%emt 0:04:32]} 24. Qd4 {[%emt 0:06:01]} f6 {[%emt 0:02:06]} 25. h3 {[%emt 0:02:34]} Nh6 {[%emt 0:00:30]} 26. Ne2 {[%emt 0:01:20]} Nhf7 {[%emt 0:02:51]} 27. Qf2 {[%emt 0:11:09]} Nd6 {[%emt 0:02:14]} 28. Nc3 {[%emt 0:02:41]} f5 {[%emt 0:02:42]} 29. exf5 {[%emt 0:03:11]} Nxf5 30. Re1 {[%emt 0:04:04]} Nc4 {[%emt 0:02:29]} 31. Rde2 {[%emt 0:00:44]} Ncd6 {[%emt 0:00:22]} 32. Be5 {[%emt 0:01:07]} Nf7 {[%emt 0:01:41]} 33. Bh2 N5d6 {[%emt 0:01:52]} 34. Re6 {[%emt 0:02:26]} Ng5 {[%emt 0:01:39]} 35. Rxe8+ {[%emt 0:02:40]} Nxe8 {[%emt 0:00:31]} 36. Bf4 {[%emt 0:01:33]} Nf7 {[%emt 0:04:35]} 37. Qd4 {[%emt 0:01:46]} Nf6 {[%emt 0:01:36]} 38. Bg3 {[%emt 0:00:55]} Ne8 {[%emt 0:02:49]} 39. Bh4 {[%emt 0:00:44]} Qd6 {[%emt 0:01:05]} 40. Re6 {[%emt 0:01:08]} Qd7 {[%emt 0:00:46]} 41. g4 {[%emt 0:05:19]} g5 {[%emt 0:05:06]} 42. Bg3 {[%emt 0:00:21]} Rd8 {[%emt 0:02:16]} 43. Qe3 {[%emt 0:00:49]} Ng7 {[%emt 0:03:35]} 44. Re7 {[%emt 0:00:51]} Re8 {[%emt 0:02:32]} 45. Rxd7 {[%emt 0:01:23]} Rxe3 {[%emt 0:00:10]} 46. Kf2 {[%emt 0:00:38]} Rd3 {[%emt 0:01:59]} 47. Rxc7 {[%emt 0:00:21]} Kf8 {[%emt 0:03:07]} 48. Rc8+ {[%emt 0:09:42]} Ke7 {[%emt 0:01:41]} 49. Rc7+ {[%emt 0:01:55]} Kf8 {[%emt 0:00:53]} 50. b4 {[%emt 0:02:59]} axb4 {[%emt 0:00:23]} 51. axb4 {[%emt 0:00:04]} Ne8 {[%emt 0:01:50]} 52. Rc8 {[%emt 0:01:59]} Ke7 {[%emt 0:00:35]} 53. Ne4 {[%emt 0:00:54]} Rxd5 {[%emt 0:00:32]} 54. Rxe8+ {[%emt 0:00:13]} Kxe8 {[%emt 0:00:53]} 55. Nf6+ {[%emt 0:00:05]} Kd8 {[%emt 0:01:05]} 56. Nxd5 {[%emt 0:00:05]} Kd7 {[%emt 0:00:29]} 57. Nxb6+ {[%emt 0:01:31]} Kc6 {[%emt 0:00:17]} 58. Nc4 {[%emt 0:00:07]} Kd5 {[%emt 0:00:41]} 59. Ne3+ {[%emt 0:01:24]} Kc6 {[%emt 0:00:30]} 60. Nf5 {[%emt 0:00:33]} Kd5 {[%emt 0:01:07]} 61. Ke3 {[%emt 0:00:37] normal} 1-0